fUSD/lending_fUSD_20240301
["ID","MTS","AMOUNT","RATE_DAILY","PERIOD"]
[315961071,1709304667635,-1324.17835613,0.000229,2]
[315961072,1709304667648,-1000.0,0.000229,2]
[315961073,1709304667658,-1324.17835613,0.000229,2]
[315961074,1709304667669,-2463.44237842,0.000229,2]
[315961075,1709304667680,-1324.17835613,0.000229,2]
[315961076,1709304667692,-1324.17835613,0.000229,2]
[315961077,1709304667703,-1497.25,0.00022904,2]
[315961078,1709304667714,-762.75,0.00022904,2]
[315961079,1709304667725,-1083.04,0.00022904,2]
[315961080,1709304667737,-500.0,0.00022904,2]
[315961081,1709304667749,-500.0,0.00022904,2]
[315961082,1709304667760,-500.0,0.00022904,2]
[315961083,1709304667772,-500.0,0.00022904,2]
[315961084,1709304667784,-2102.53,0.00022904,2]
[315961085,1709304667795,-715.33,0.00022904,2]
[315961086,1709304667806,-500.0,0.00022904,2]
[315961087,1709304667817,-661.72,0.00022904,2]
[315961088,1709304667829,-739.85,0.00022904,2]
[315961089,1709304667840,-1959.93,0.00022904,2]
[315961090,1709304667851,-659.56,0.00022904,2]
[315961091,1709304667862,-1577.2,0.00022904,2]
[315961092,1709304667879,-640.32,0.00022904,2]
[315961093,1709304667890,-500.0,0.00022904,2]
[315961094,1709304667903,-553.23478704,0.00022904,2]
[315961095,1709304667914,-1422.57,0.00022904,2]
[315961096,1709304667925,-2134.63,0.00022904,2]
[315961097,1709304667937,-736.33,0.00022904,2]
[315961098,1709304667949,-500.0,0.00022904,2]
[315961099,1709304667961,-562.5,0.00022904,2]
[315961100,1709304667974,-1355.32,0.00022904,2]
[315961101,1709304667988,-500.0,0.00022904,2]
[315961102,1709304668001,-574.06,0.00022904,2]
[315961103,1709304668013,-517.62,0.00022904,2]
[315961104,1709304668025,-538.98,0.00022904,2]
[315961105,1709304668038,-2759.21,0.00022904,2]
[315961106,1709304668055,-500.0,0.00022904,2]
[315961107,1709304668069,-500.0,0.00022904,2]
[315961108,1709304668081,-676.01,0.00022904,2]
[315961109,1709304668094,-575.56,0.00022904,2]
[315961110,1709304668106,-1394.07,0.00022904,2]
[315961111,1709304668118,-500.0,0.00022904,2]
[315961112,1709304668130,-500.0,0.00022904,2]
[315961113,1709304668142,-782.53,0.00022904,2]
[315961114,1709304668154,-500.0,0.00022904,2]
[315961115,1709304668166,-500.0,0.00022904,2]
[315961116,1709304668178,-840.02,0.00022904,2]
[315961117,1709304668191,-1904.18,0.00022904,2]
[315961118,1709304668203,-4442.37,0.00022904,2]
[315961119,1709304668215,-290.25,0.00022909,2]
[315961120,1709304668226,-409.83,0.00022956,2]
[315961121,1709304668237,-400.78,0.00022956,2]
[315961122,1709304668248,-204.36,0.00022956,2]
[315961123,1709304668259,-883.56,0.00022965,2]
[315961124,1709304668270,-500.0,0.00022967,2]
[315961125,1709304668281,-1000.0,0.0002297,2]
[315961126,1709304668291,-500.0,0.0002297,2]
[315961127,1709304668305,-150.0,0.00022974,2]
[315961128,1709304668316,-150.63,0.00022974,2]
[315961129,1709304668327,-345.0,0.00022974,2]
[315961130,1709304668338,-150.0,0.00022974,2]
[315961131,1709304668351,-150.0,0.00022974,2]
[315961132,1709304668363,-413.61,0.00022974,2]
[315961133,1709304668374,-150.0,0.00022974,2]
[315961134,1709304668384,-861.97104713,0.00022975,2]
[315961135,1709304668395,-155.0,0.00022975,2]
[315961136,1709304668406,-216.45836637,0.00022975,2]
[315961137,1709304668416,-155.0,0.00022975,2]
[315961138,1709304668427,-500.0,0.00022978,2]
[315961139,1709304668438,-500.0,0.00022978,2]
[315961140,1709304668448,-62649.62,0.0002298,3]
[315961141,1709304668459,-370.58,0.0002298,2]
[315961142,1709304668470,-239.06403164,0.00022982,2]
[315961143,1709304668480,-203.97568013,0.00022982,2]
[315961144,1709304668491,-804.13814368,0.00022982,2]
[315961145,1709304668501,-284.58560959,0.00022982,2]
[315961146,1709304668512,-636.80118964,0.00022982,2]
[315961147,1709304668522,-300.46429321,0.00022982,2]
[315961148,1709304668533,-296.87733629,0.00022982,2]
[315961149,1709304668546,-192.01,0.00022983,2]
[315961150,1709304668556,-9861.8552387,0.00022984,2]
[315961151,1709304668567,-8190.753277,0.00022984,2]
[315961152,1709304668577,-6519.6513153,0.00022984,2]
[315961153,1709304668587,-4848.5493536,0.00022984,2]
[315961154,1709304668598,-3177.4473919,0.00022984,2]
[315961155,1709304668608,-3771.6148176,0.00022984,2]
[315961156,1709304668618,-3053.2633112,0.00022984,2]
[315961157,1709304668628,-2334.9118047,0.00022984,2]
[315961158,1709304668638,-1616.5602982,0.00022984,2]
[315961159,1709304668648,-898.2087918,0.00022984,2]
[315961160,1709304668658,-203416.9714492,0.00022984,2]
[315961161,1709304668668,-164673.6493062,0.00022984,2]
[315961162,1709304668678,-125930.3271633,0.00022984,2]
[315961163,1709304668688,-87187.0050204,0.00022984,2]
[315961164,1709304668698,-48443.6828774,0.00022984,2]
[315961165,1709304668708,-200.0,0.00022987,2]
[315961166,1709304668718,-5250.0,0.0002299,7]
[315961167,1709304668728,-5250.0,0.0002299,3]
[315961168,1709304668738,-2000.0,0.0002299,2]
[315961169,1709304668749,-150.0,0.00022995,2]
[315961170,1709304668759,-407.3486941,0.00022996,20]
[315961171,1709304668770,-525.16801246,0.00022996,2]
[315961172,1709304668781,-150.0,0.00022996,2]
[315961173,1709304668791,-337602.5890828,0.00022997,2]
[315961174,1709304668805,-408.84141908,0.00022998,2]
[315961175,1709304668816,-418269.70639424,0.00022998,2]
[315961176,1709304668826,-500.0,0.00022999,2]
[315961177,1709304668839,-500.0,0.00022999,2]
[315961178,1709304669109,-500.0,0.00022999,2]
[315961179,1709304669120,-500.0,0.00022999,2]
[315961180,1709304669132,-500.0,0.00022999,2]
[315961181,1709304669142,-1000.0,0.00022999,2]
[315961182,1709304669151,-525.16801246,0.00022999,2]
[315961183,1709304669162,-150.0,0.00022999,2]
[315961184,1709304669171,-150.0,0.00022999,2]
[315961185,1709304669181,-525.16801246,0.00022999,2]
[315961186,1709304669191,-150.0,0.00022999,2]
[315961187,1709304669201,-525.16801246,0.00022999,2]
[315961188,1709304669211,-150.0,0.00022999,2]
[315961189,1709304669221,-525.16801246,0.00022999,2]
[315961190,1709304669231,-150.0,0.00022999,2]
[315961191,1709304669241,-525.16801246,0.00022999,2]
[315961192,1709304669251,-150.0,0.00022999,2]
[315961193,1709304669261,-525.16801246,0.00022999,2]
[315961194,1709304669271,-150.0,0.00022999,2]
[315961195,1709304669281,-525.16801246,0.00022999,2]
[315961196,1709304669296,-150.0,0.00022999,2]
[315961197,1709304669306,-525.16801246,0.00022999,2]
[315961198,1709304669316,-150.0,0.00022999,2]
[315961199,1709304669326,-525.16801246,0.00022999,2]
[315961200,1709304669336,-150.0,0.00022999,2]
[315961201,1709304669346,-525.16801246,0.00022999,2]
[315961202,1709304669356,-150.0,0.00022999,2]
[315961203,1709304669366,-525.16801246,0.00022999,2]
[315961204,1709304669377,-150.0,0.00022999,2]
[315961205,1709304669387,-525.16801246,0.00022999,2]
[315961206,1709304669397,-150.0,0.00022999,2]
[315961207,1709304669407,-150.0,0.00022999,2]
[315961208,1709304669417,-525.16801246,0.00022999,2]
[315961209,1709304669427,-150.0,0.00022999,2]
[315961210,1709304669437,-525.16801246,0.00022999,2]
[315961211,1709304669450,-150.0,0.00022999,2]
[315961212,1709304669461,-525.16801246,0.00022999,2]
[315961213,1709304669471,-525.16801246,0.00022999,2]
[315961214,1709304669482,-150.0,0.00022999,2]
[315961215,1709304669493,-525.16801246,0.00022999,2]
[315961216,1709304669504,-150.0,0.00022999,2]
[315961217,1709304669514,-525.16801246,0.00022999,2]
[315961218,1709304669524,-150.0,0.00022999,2]
[315961219,1709304669535,-525.16801246,0.00022999,2]
[315961220,1709304669547,-150.0,0.00022999,2]
[315961221,1709304669557,-150.0,0.00022999,2]
[315961222,1709304669567,-525.16801246,0.00022999,2]
[315961223,1709304669577,-150.0,0.00022999,2]
[315961224,1709304669588,-525.16801246,0.00022999,2]
[315961225,1709304669599,-150.0,0.00022999,2]
[315961226,1709304669609,-231.51055008,0.00022999,2]
[315961227,1709304669620,-525.16801246,0.00022999,2]
[315961228,1709304669630,-525.16801246,0.00022999,2]
[315961229,1709304669640,-525.16801246,0.00022999,2]
[315961230,1709304669650,-525.16801246,0.00022999,2]
[315961231,1709304669662,-525.16801246,0.00022999,2]
[315961232,1709304669672,-525.16801246,0.00022999,2]
[315961233,1709304669682,-525.16801246,0.00022999,2]
[315961234,1709304669693,-2961.80521882,0.00023,3]
[315961235,1709304669703,-1242598.13156508,0.00023,2]
[315961236,1709304669713,-1070223.13842111,0.00023,2]
[315961237,1709304670750,-165.66775901,0.00021916,2]
[315961238,1709304670761,-223.93473057,0.00021916,2]
[315961239,1709304670771,-282.54,0.00021917,2]
[315961240,1709304670781,-500.0,0.00021917,2]
[315961241,1709304670791,-500.0,0.00021917,2]
[315961242,1709304670805,-500.0,0.00021917,2]
[315961243,1709304670815,-500.0,0.00022027,2]
[315961244,1709304670825,-500.0,0.00022027,2]
[315961245,1709304670840,-559.37348194,0.00022027,2]
[315961246,1709304670851,-645.33124489,0.00022136,2]
[315961247,1709304670861,-500.0,0.00022136,2]
[315961248,1709304670872,-500.0,0.00022136,2]
[315961249,1709304670882,-500.0,0.00022246,2]
[315961250,1709304670892,-330.71486359,0.00022356,2]
[315961251,1709304670936,-500.0,0.00022136,2]
[315961252,1709304670945,-500.0,0.00022246,2]
[315961253,1709304670959,-169.28513641,0.00022356,2]
[315961254,1709304670973,-500.0,0.00022465,2]
[315961255,1709304670984,-476.59932372,0.00022575,2]
[315961256,1709304671129,-23.40067628,0.00022575,2]
[315961257,1709304671140,-500.0,0.00022575,2]
[315961258,1709304671150,-125.56405686,0.00022684,2]
[315961259,1709304672387,-251.69464344,0.0002,3]
[315961260,1709304672404,-2670.76192521,0.0002,3]
[315961261,1709304672515,-4647.60419,0.0002,3]
[315961262,1709304672533,-265.88,0.0002,3]
[315961263,1709304672549,-4835.23268,0.0002,3]
[315961264,1709304672583,-217.81833622,0.00018,2]
[315961265,1709304672593,-6806.86280066,0.0002,3]
[315961266,1709304672604,-12285.22,0.00020953,2]
[315961267,1709304672613,-182.72228946,0.00021915,2]
[315961268,1709304672623,-187.35485517,0.00021915,2]
[315961269,1709304672633,-1016.15943733,0.00021915,10]
[315961270,1709304672642,-214.89347695,0.00021915,2]
[315961271,1709304672651,-180.32770571,0.00021915,2]
[315961272,1709304672661,-300.53923307,0.00021916,2]
[315961273,1709304672671,-1358.07309552,0.00021916,2]
[315961274,1709304672680,-1594.91785343,0.00021916,2]
[315961275,1709304672689,-692.90731309,0.00021916,2]
[315961276,1709304672699,-230.84148984,0.00021916,2]
[315961277,1709304672709,-500.0,0.00021917,2]
[315961278,1709304672718,-274.55303709,0.00021917,2]
[315961279,1709304672751,-199.58189227,0.00021915,2]
[315961280,1709304672761,-225.44696291,0.00021917,2]
[315961281,1709304672771,-500.0,0.00021917,2]
[315961282,1709304672780,-500.0,0.00021917,2]
[315961283,1709304672790,-500.0,0.00021917,2]
[315961284,1709304672802,-500.0,0.00021917,2]
[315961285,1709304672811,-500.0,0.00021917,2]
[315961286,1709304672821,-500.0,0.00021917,2]
[315961287,1709304672830,-500.0,0.00021917,2]
[315961288,1709304672840,-500.0,0.00022027,2]
[315961289,1709304672849,-500.0,0.00022027,2]
[315961290,1709304672858,-500.0,0.00022027,2]
[315961291,1709304672868,-500.0,0.00022027,2]
[315961292,1709304672877,-500.0,0.00022027,2]
[315961293,1709304672887,-500.0,0.00022027,2]
[315961294,1709304672897,-500.0,0.00022027,2]
[315961295,1709304672907,-1010.9,0.00022111,2]
[315961296,1709304672917,-500.0,0.00022136,2]
[315961297,1709304672927,-500.0,0.00022136,2]
[315961298,1709304672936,-500.0,0.00022136,2]
[315961299,1709304672946,-500.0,0.00022136,2]
[315961300,1709304672958,-500.0,0.00022246,2]
[315961301,1709304672968,-500.0,0.00022246,2]
[315961302,1709304672978,-500.0,0.00022246,2]
[315961303,1709304672988,-500.0,0.00022356,2]
[315961304,1709304672999,-500.0,0.00022356,2]
[315961305,1709304673009,-500.0,0.00022356,2]
[315961306,1709304673019,-500.0,0.00022356,2]
[315961307,1709304673028,-500.0,0.00022465,2]
[315961308,1709304673038,-500.0,0.00022465,2]
[315961309,1709304673048,-446.36131468,0.00022481,2]
[315961310,1709304673058,-500.0,0.00022575,2]
[315961311,1709304673067,-500.0,0.00022575,2]
[315961312,1709304673077,-374.43594314,0.00022684,2]
[315961313,1709304673087,-500.0,0.00022684,2]
[315961314,1709304673097,-500.0,0.00022684,2]
[315961315,1709304673106,-634.02980291,0.00022684,2]
[315961316,1709304673117,-500.0,0.00022794,2]
[315961317,1709304673127,-500.0,0.00022794,2]
[315961318,1709304673137,-500.0,0.00022794,2]
[315961319,1709304673147,-11960.71897067,0.00022799,2]
[315961320,1709304673157,-11960.71897067,0.00022799,2]
[315961321,1709304673167,-1840.20780786,0.00022824,2]
[315961322,1709304673177,-1324.17835613,0.000229,2]
[315961323,1709304673187,-1840.20780786,0.000229,2]
[315961324,1709304673197,-628.34987089,0.00022904,2]
[315961325,1709304673207,-500.0,0.00022904,2]
[315961326,1709304673217,-300.96,0.00022904,2]
[315961327,1709304673228,-525.16801246,0.00022999,2]
[315961328,1709304673238,-525.16801246,0.00022999,2]
[315961329,1709304673248,-525.16801246,0.00022999,2]
[315961330,1709304673258,-525.16801246,0.00022999,2]
[315961331,1709304673268,-525.16801246,0.00022999,2]
[315961332,1709304673277,-525.16801246,0.00022999,2]
[315961333,1709304673287,-525.16801246,0.00022999,2]
[315961334,1709304673299,-193420.3631776,0.00023,2]
[315961335,1709304673313,-79636.78936567,0.00023,2]
[315961336,1709304673323,-28666.17379484,0.00023,2]
[315961337,1709304682021,322.75321824,9e-05,2]
[315961338,1709304692916,127.24678176,0.0001,2]
[315961339,1709304692942,290.08991947,0.0001,2]
[315961340,1709304697538,159.91008053,0.00011,2]
[315961341,1709304697562,450.0,0.00011,2]
[315961342,1709304697589,450.0,0.00011,2]
[315961343,1709304697614,1178.33470952,0.00011,2]
[315961344,1709304735163,-450.0,0.00014999,2]
[315961345,1709304736330,-58.01161448,0.00014999,2]
[315961346,1709304757815,258.51689611,0.00014999,2]
[315961347,1709304764900,-180.24213392,0.00015,10]
[315961348,1709304830850,269.75786608,0.000142,2]
[315961349,1709304830875,450.0,0.000142,2]
[315961350,1709304830901,133.47148941,0.000142,2]
[315961351,1709304830928,450.0,0.000142,2]
[315961353,1709304938912,-1098.65964727,0.00014199,2]
[315961354,1709304938932,-3345.34035273,0.000142,2]
[315961359,1709305209056,-234.84782212,0.00014188,2]
[315961360,1709305209366,-546.60403373,0.00014188,2]
[315961361,1709305209390,-258.51689611,0.00014188,2]
[315961362,1709305209413,-155.0,0.00014188,2]
[315961363,1709305209435,-179.64,0.00014189,2]
[315961364,1709305209458,-2138.99822812,0.00014189,2]
[315961365,1709305209480,-150.0,0.00014189,2]
[315961366,1709305209506,-150.0,0.00014189,2]
[315961367,1709305209528,-10086.39301992,0.0001419,2]
[315961368,1709305243112,20000.0,0.00013,2]
[315961369,1709305273506,151.0,0.0002382,120]
[315961370,1709305321893,-1042.70407303,0.00014179,2]
[315961371,1709305321922,-204.73580449,0.00014179,2]
[315961372,1709305321952,-691.73065299,0.0001418,2]
[315961373,1709305321988,-160.82946949,0.00014181,2]
[315961374,1709305372175,-165.70840078,0.00014178,2]
[315961375,1709305372215,-1594.91785343,0.00014178,2]
[315961376,1709305372254,-339.87480405,0.00014178,2]
[315961377,1709305372289,-204.01923883,0.00014178,2]
[315961378,1709305372327,-157.70427687,0.00014179,2]
[315961379,1709305372364,-2158.2476961,0.00014179,2]
[315961380,1709305372404,-155.0,0.00014179,2]
[315961381,1709305372440,-5492.2922799,0.0001418,2]
[315961382,1709305372476,-423.02975116,0.0001418,2]
[315961383,1709305372514,-5337.57667588,0.0001418,2]
[315961384,1709305372551,-692.90731309,0.0001418,2]
[315961385,1709305372583,-230.84148984,0.00014189,2]
[315961386,1709305372623,-12060.07251323,0.0001419,2]
[315961387,1709305372656,-987.80770684,0.000142,2]
[315961388,1709305392571,-1100.0,0.000142,2]
[315961389,1709305456333,4223.08488818,0.000251,120]
[315961390,1709305484611,-155.0,0.00014199,2]
[315961391,1709305484639,-93.15551561,0.000142,2]
[315961392,1709305484668,-193.27645268,0.000142,2]
[315961393,1709305484696,-176.8679273,0.000142,2]
[315961394,1709305484727,-4781.70010441,0.00015,2]
[315961395,1709305494338,-408.79186619,0.00014199,2]
[315961396,1709305494367,-191.20813381,0.00015,2]
[315961398,1709305546176,151.0,0.00024247,120]
[315961400,1709305600234,-151.23326458,0.00014996,2]
[315961407,1709305700284,-204.01923883,0.00014889,2]
[315961408,1709305700313,-165.70840078,0.00014889,2]
[315961409,1709305700337,-80.27236039,0.00014889,2]
[315961410,1709305701766,-450.0,0.00014889,2]
[315961411,1709305702980,-450.0,0.00014889,2]
[315961412,1709305704132,-450.0,0.00014888,2]
[315961413,1709305705335,-96.60403373,0.00014888,2]
[315961414,1709305705361,-353.39596627,0.00014889,2]
[315961416,1709305708725,-261.24952677,0.00014889,2]
[315961417,1709305709691,188.75047323,0.00014888,2]
[315961418,1709305722697,170.23385,0.0001,2]
[315961420,1709305731727,1000.0,0.00025,120]
[315961421,1709305741867,4000.0,0.000251,120]
[315961423,1709305748254,-450.0,0.00014787,2]
[315961424,1709305761984,-450.0,0.00014785,2]
[315961425,1709305763201,-242.90731309,0.00014785,2]
[315961426,1709305763227,-207.09268691,0.00014785,2]
[315961429,1709305782821,-132.78211714,0.00014785,2]
[315961430,1709305782847,-317.21788286,0.00014785,2]
[315961431,1709305784130,-450.0,0.00014785,2]
[315961435,1709305806037,10665.37266773,0.000251,120]
[315961436,1709305810253,-155.0,0.00014783,2]
[315961437,1709305810278,-155.0,0.00014783,2]
[315961438,1709305812770,140.0,0.00014684,2]
[315961451,1709305832616,-258.51689611,0.00014683,2]
[315961452,1709305832627,-2024.87323114,0.00014683,2]
[315961453,1709305832640,-3312.70344474,0.00014683,2]
[315961454,1709305832650,-603.25272471,0.00014684,2]
[315961455,1709305832698,-2771.43092134,0.00014684,2]
[315961456,1709305832708,-5492.2922799,0.00014784,2]
[315961457,1709305832718,-275.83810258,0.00014785,2]
[315961458,1709305832735,-46.09734889,0.00014888,2]
[315961459,1709305832749,-300.0,0.00014889,2]
[315961460,1709305832759,-150.0,0.00014889,2]
[315961461,1709305832768,-508.01161448,0.00014999,2]
[315961463,1709305832778,-27.09176178,0.00015,2]
[315961465,1709305832788,-459.6462769,0.00015,2]
[315961467,1709305832797,-1310.4,0.00015823,2]
[315961469,1709305832807,-150.99,0.00015823,2]
[315961471,1709305832816,-420.0,0.00016297,2]
[315961473,1709305832827,-7636.05,0.00016297,2]
[315961475,1709305832837,-499.99,0.00016297,2]
[315961477,1709305832846,-210.0,0.00016378,2]
[315961479,1709305832855,-150.0,0.00016887,2]
[315961481,1709305832864,-150.99,0.00017062,2]
[315961483,1709305832874,-178.71,0.00017063,2]
[315961485,1709305832883,-161.57833347,0.00017069,2]
[315961487,1709305832893,-165.70840078,0.00017168,2]
[315961489,1709305832903,-691.32,0.00017169,2]
[315961491,1709305832912,-923.75,0.00017377,2]
[315961493,1709305832923,-910.0,0.00017432,2]
[315961495,1709305832933,-500.0,0.0001756,2]
[315961497,1709305832943,-3514.68364604,0.00017674,2]
[315961499,1709305832952,-150.0,0.00017708,2]
[315961501,1709305832962,-200.0,0.00017774,2]
[315961503,1709305832972,-14473.35,0.00017809,2]
[315961504,1709305832984,-300.0,0.00017838,2]
[315961506,1709305832994,-1033.59,0.00017858,2]
[315961507,1709305833003,-161.57833346,0.0001786,2]
[315961508,1709305833013,-268.27,0.00017883,2]
[315961509,1709305833023,-546.60403373,0.00017885,2]
[315961510,1709305833033,-1594.91785343,0.00017886,2]
[315961511,1709305833042,-11447.72,0.00017887,2]
[315961512,1709305833051,-232.3,0.00017902,2]
[315961513,1709305833061,-155.0,0.00018,2]
[315961514,1709305833070,-293.0,0.00018016,2]
[315961515,1709305833080,-2420.46151335,0.00018018,2]
[315961516,1709305833547,-5563.22848665,0.00018018,2]
[315961517,1709305833556,-683.42,0.00018045,2]
[315961518,1709305833566,-2400.12,0.00018061,2]
[315961519,1709305833575,-1310.4,0.00018087,2]
[315961520,1709305833586,-250.0,0.00018166,2]
[315961521,1709305833595,-1223.82,0.00018315,2]
[315961522,1709305833605,-3052.74,0.0001833,2]
[315961523,1709305833614,-1590.17,0.00018341,2]
[315961524,1709305833624,-209.39,0.00018366,2]
[315961525,1709305833634,-3781.78,0.00018393,2]
[315961526,1709305833644,-1852.42,0.00018445,2]
[315961527,1709305833653,-4131.92959442,0.00018445,2]
[315961528,1709305833666,-266.36837817,0.00018445,2]
[315961529,1709305833678,-510.09160601,0.00018445,2]
[315961530,1709305833690,-446.69074108,0.00018445,2]
[315961531,1709305833701,-1645.92968032,0.00018445,2]
[315961532,1709305833711,-8009.58723325,0.00018537,2]
[315961533,1709305833744,-3192.27276675,0.00018537,2]
[315961534,1709305833753,-1078.02,0.00018577,2]
[315961535,1709305833763,-3510.26189247,0.00018617,2]
[315961536,1709305833775,-4944.50459879,0.00018617,2]
[315961537,1709305833813,-1496.41350874,0.00018617,2]
[315961538,1709305833822,-161.57833346,0.00018652,2]
[315961539,1709305833831,-121.67448815,0.00018655,2]
[315961540,1709305833842,-32.25551185,0.00018655,2]
[315961541,1709305833852,-1000.0,0.00018756,2]
[315961542,1709305833861,-1000.0,0.00018808,2]
[315961543,1709305833870,-1000.0,0.00018859,2]
[315961544,1709305833879,-155.0,0.00018869,2]
[315961545,1709305833889,-155.0,0.00018869,2]
[315961546,1709305833898,-384.05140427,0.0001887,2]
[315961547,1709305833907,-339.70676469,0.0001891,2]
[315961548,1709305833916,-1000.0,0.00018911,2]
[315961549,1709305833926,-150.0,0.00018945,2]
[315961550,1709305833936,-1000.0,0.00018962,2]
[315961551,1709305833945,-1000.0,0.00019014,2]
[315961552,1709305833954,-204.15,0.00019057,2]
[315961553,1709305833963,-1000.0,0.00019065,2]
[315961554,1709305833972,-155.0,0.00019072,2]
[315961555,1709305833984,-155.0,0.00019072,2]
[315961556,1709305833994,-483.66705448,0.00019072,2]
[315961557,1709305834003,-692.90731309,0.00019072,2]
[315961558,1709305834012,-325.75126966,0.00019073,2]
[315961559,1709305834021,-7831.58055196,0.00019074,2]
[315961560,1709305834033,-346.48303694,0.00019074,2]
[315961561,1709305834054,-453.51,0.00019074,2]
[315961562,1709305834070,-1530.06809891,0.00019074,2]
[315961563,1709305834079,-1863.20112916,0.00019116,2]
[315961564,1709305834089,-1000.0,0.00019117,2]
[315961565,1709305834099,-253.86871158,0.00019168,2]
[315961566,1709305834111,-746.13128842,0.00019168,2]
[315961567,1709305834122,-500.0,0.00019178,2]
[315961568,1709305834131,-1737.76909704,0.00019178,2]
[315961569,1709305834143,-52.15090296,0.00019178,2]
[315961570,1709305834153,-1186.1874651,0.00019178,2]
[315961571,1709305834165,-1130.28342085,0.00019178,2]
[315961577,1709305841063,-463.19576526,0.00014888,2]
[315961580,1709305841075,-579.86022018,0.00014888,2]
[315961582,1709305841085,-3735.63977982,0.00019178,2]
[315961583,1709305841097,-888.26021703,0.00019178,2]
[315961586,1709305841206,-608.00620484,0.00019178,2]
[315961587,1709305841218,-386.5175046,0.00019178,2]
[315961588,1709305841233,-2854.2972,0.00019178,2]
[315961589,1709305841245,-300.0,0.00019178,2]
[315961590,1709305841359,-659.1292335,0.00019178,2]
[315961591,1709305841372,-12972.00867888,0.00019178,2]
[315961592,1709305841384,-309.455,0.00019178,2]
[315961593,1709305841396,-336.804,0.00019178,2]
[315961594,1709305841435,-271.97250492,0.00019178,2]
[315961595,1709305841508,-3613.84489398,0.00019178,2]
[315961596,1709305841520,-17717.45389648,0.00019178,2]
[315961597,1709305841531,-250.0,0.00019178,2]
[315961598,1709305841541,-250.0,0.00019178,2]
[315961599,1709305841550,-153.93,0.00019203,2]
[315961600,1709305841560,-1000.0,0.00019219,2]
[315961601,1709305841570,-1000.0,0.00019271,2]
[315961602,1709305841579,-1000.0,0.00019322,2]
[315961603,1709305841589,-1000.0,0.00019374,2]
[315961604,1709305841599,-155.0,0.0001942,2]
[315961605,1709305841609,-1000.0,0.00019425,2]
[315961606,1709305841619,-179.19,0.00019428,2]
[315961607,1709305841629,-161.57833346,0.00019443,2]
[315961608,1709305841638,-1000.0,0.00019477,2]
[315961609,1709305841648,-1078.02,0.00019506,2]
[315961610,1709305841657,-1000.0,0.00019528,2]
[315961611,1709305841666,-155.0,0.00019579,2]
[315961612,1709305841675,-1000.0,0.0001958,2]
[315961613,1709305841685,-910.0,0.00019611,2]
[315961614,1709305841694,-1000.0,0.00019631,2]
[315961615,1709305841704,-408.60707197,0.00019682,2]
[315961616,1709305841714,-1000.0,0.00019683,2]
[315961617,1709305841723,-204.15,0.00019731,2]
[315961618,1709305841734,-1000.0,0.00019734,2]
[315961619,1709305841743,-170.49,0.00019745,2]
[315961620,1709305841753,-153.93,0.00019751,2]
[315961621,1709305841762,-184.59,0.00019754,2]
[315961622,1709305841772,-411.0,0.00019817,2]
[315961623,1709305841781,-1412.71448902,0.00019867,2]
[315961625,1709305841790,-155.0,0.00019868,2]
[315961627,1709305841800,-167.85433788,0.000199,2]
[315961629,1709305841809,-167.85433785,0.000199,2]
[315961631,1709305841818,-1016.15943733,0.0002,10]
[315961633,1709305841828,-350.0,0.0002,3]
[315961636,1709305841844,-17278.02882833,0.0002,3]
[315961639,1709305841858,-387.69067488,0.00020103,2]
[315961642,1709305841881,-287.31932512,0.00020103,2]
[315961644,1709305841890,-161.57833346,0.00020234,2]
[315961646,1709305841901,-178.0,0.0002028,2]
[315961648,1709305841911,-297.6188846,0.0002028,2]
[315961650,1709305841922,-500.0,0.0002028,2]